bitfinex/quotes_ETHUSD_20220309
["timestamp","ask_amount","ask_price","bid_price","bid_amount"]
[1646849032593,3.35191,2740.9,2740.8,1.51771019]
[1646849032833,2.35191,2740.9,2740.8,1.51771019]
[1646849033034,3.35191,2740.9,2740.8,1.51771019]
[1646849033232,2.35191,2740.9,2740.8,1.51771019]
[1646849033432,3.35191,2740.9,2740.8,1.51771019]
[1646849034738,6.85191,2740.9,2740.8,1.51771019]
[1646849035135,5.0,2740.7,2739.8,0.00549647]
[1646849035335,0.940198,2740.5,2739.8,0.0039315]
[1646849035635,1.03724551,2740.2,2739.8,0.0039315]
[1646849035836,1.56324551,2740.2,2739.8,0.0039315]
[1646849036134,1.56324551,2740.2,2739.7,0.00243548]
[1646849037183,0.91323,2740.1,2739.7,0.00243548]
[1646849037591,0.91323,2740.1,2739.8,0.00393057]
[1646849038387,0.91323,2740.1,2739.8,0.07439739]
[1646849038590,3.99992273,2740.4,2739.8,0.07439739]
[1646849038787,1.0,2740.4,2739.8,0.89705134]
[1646849038987,1.0,2740.4,2739.9,0.09048919]
[1646849039188,0.552998,2740.5,2739.9,0.89312077]
[1646849039388,0.552998,2740.5,2740.0,0.075563]
[1646849039987,0.552998,2740.5,2740.1,0.67732583]
[1646849039988,0.91301,2740.4,2740.1,0.67732583]
[1646849040250,3.0,2740.6,2740.3,0.76161738]
[1646849040432,0.024501,2740.7,2740.4,0.67732583]
[1646849040734,0.550501,2740.7,2740.4,0.67732583]
[1646849041535,0.550501,2740.7,2740.5,0.67732583]
[1646849041734,5.32609,2740.6,2740.3,0.67732583]
[1646849041946,5.32609,2740.6,2740.2,0.67732583]
[1646849041947,0.02729,2740.4,2740.2,0.67732583]
[1646849042133,0.526,2740.3,2740.2,0.67732583]
[1646849042334,0.526,2740.3,2740.0,0.89312077]
[1646849042532,0.526,2740.3,2740.2,0.6800009]
[1646849042936,1.43916,2740.3,2740.2,0.6800009]
[1646849043135,4.93916,2740.3,2740.2,0.6800009]
[1646849043340,4.93916,2740.3,2739.6,0.00156497]
[1646849043341,5.5,2740.0,2739.6,0.00156497]
[1646849043540,5.5,2740.0,2738.9,0.012251]
[1646849043541,0.029168,2739.7,2739.4,0.00156497]
[1646849043737,0.029168,2739.7,2739.0,0.08536115]
[1646849043738,3.526,2739.6,2739.0,0.08536115]
[1646849043988,0.91348,2739.5,2739.0,0.08536115]
[1646849044186,0.526,2739.4,2739.0,0.08536115]
[1646849044586,0.526,2739.4,2738.8,0.07167362]
[1646849044786,0.526,2739.4,2739.1,0.00416185]
[1646849045588,0.526,2739.4,2739.0,0.08372184]
[1646849045987,0.526,2739.4,2739.1,0.00416185]
[1646849046791,0.526,2739.4,2739.0,0.08372184]
[1646849047191,0.526,2739.4,2739.1,0.00416185]
[1646849047836,0.526,2739.4,2739.1,0.91747185]
[1646849048040,0.526,2739.4,2739.1,1.21331]
[1646849048237,5.64708724,2739.6,2739.1,0.30416185]
[1646849048438,6.17308724,2739.6,2739.1,0.30416185]
[1646849048637,6.17308724,2739.6,2739.1,0.00416185]
[1646849048836,0.99348017,2739.4,2739.1,0.00416185]
[1646849049038,1.01942817,2739.4,2739.1,0.00416185]
[1646849049241,1.01942817,2739.4,2738.8,0.07270034]
[1646849049242,1.55187073,2739.4,2738.8,0.07270034]
[1646849049441,0.99992273,2739.4,2739.0,0.024727]
[1646849049640,2.82,2739.7,2739.2,0.024886]
[1646849049840,3.5,2739.6,2739.5,0.024959]
[1646849050038,2.82,2739.7,2739.5,0.024959]
[1646849050241,2.7665,2740.3,2739.6,0.88029294]
[1646849050438,5.75816471,2740.5,2739.8,0.937732]
[1646849050439,2.25816471,2740.5,2739.8,0.937732]
[1646849050643,0.99992273,2740.4,2739.8,1.237732]
[1646849050838,3.5,2740.3,2739.8,1.237732]
[1646849051239,3.5,2740.3,2739.8,0.937732]
[1646849051688,3.5,2740.3,2739.8,0.024762]
[1646849051889,4.63500903,2740.3,2739.8,0.02857548]
[1646849052086,3.5,2740.3,2739.8,0.00381348]
[1646849052688,4.5,2740.3,2739.8,0.00381348]
[1646849052893,3.5,2740.3,2739.7,1.92422476]
[1646849053091,1.0,2740.3,2739.8,0.00368621]
[1646849053297,3.82601273,2740.4,2739.8,0.00368621]
[1646849053594,0.913,2740.3,2739.8,0.00368621]
[1646849053993,4.413,2740.3,2739.7,2.22422476]
[1646849054193,4.413,2740.3,2739.9,0.024695]
[1646849054392,4.413,2740.3,2739.9,0.937735]
[1646849054591,4.413,2740.3,2739.9,0.024695]
[1646849054592,7.913,2740.3,2739.9,0.024695]
[1646849054794,0.526,2740.2,2739.8,0.08311399]
[1646849054993,0.526,2740.2,2739.9,1.51801067]
[1646849055841,4.413,2740.3,2740.0,0.09905726]
[1646849056132,4.413,2740.3,2740.1,1.51801067]
[1646849056533,0.913,2740.3,2740.1,1.51801067]
[1646849058235,0.913,2740.3,2740.2,1.27613512]
[1646849058442,0.913,2740.3,2740.2,2.79414579]
[1646849058736,0.913,2740.3,2740.2,1.60734377]
[1646849058981,0.9129,2740.6,2740.3,0.07566076]
[1646849059382,0.9129,2740.6,2740.4,1.54234109]
[1646849059683,0.9129,2740.6,2740.4,0.024641]
[1646849060082,0.9129,2740.6,2740.4,1.2209643]
[1646849060285,0.9129,2740.6,2740.5,1.60501492]
[1646849060586,4.09675144,2741.0,2740.6,0.0892597]
[1646849060786,1.0,2741.2,2740.7,1.51759733]
[1646849061087,1.0,2741.2,2740.9,0.024809]
[1646849061088,1.55000181,2741.2,2740.9,0.024809]
[1646849061283,3.0,2741.0,2740.9,0.024809]
[1646849061484,3.0,2741.0,2740.9,0.937449]
[1646849061704,3.0,2741.0,2740.9,0.91264]
[1646849062083,3.0,2741.0,2740.9,0.938316]
[1646849062583,3.0,2741.0,2740.9,0.025676]
[1646849062840,0.91296,2740.8,2740.2,0.02606597]
[1646849063039,0.91296,2740.8,2740.3,1.51765874]
[1646849063237,0.91296,2740.8,2740.4,1.51765874]
[1646849063437,0.91296,2740.8,2740.0,0.024501]
[1646849063642,3.0,2740.6,2740.1,1.51769877]
[1646849063837,0.91306,2740.5,2740.1,1.51769877]
[1646849064337,3.0,2740.4,2740.1,1.51769877]
[1646849065036,3.0,2740.4,2740.2,0.024616]
[1646849065236,3.0,2740.4,2740.3,1.54236577]
[1646849065839,3.0,2740.4,2740.3,1.51769877]
[1646849068287,1.82611,2740.6,2740.5,0.70589317]
[1646849069087,1.82611,2740.6,2740.5,2.22361177]
[1646849071541,1.82611,2740.6,2740.5,2.31054637]
[1646849071734,0.18968256,2740.7,2740.6,0.07071662]
[1646849071933,1.82573,2741.0,2740.6,0.07071662]
[1646849072333,3.91278,2741.1,2740.6,0.07071662]
[1646849072534,3.91278,2741.1,2740.6,1.58843522]
[1646849072733,3.91278,2741.1,2740.7,1.59360532]
[1646849072938,3.91278,2741.1,2740.8,1.60465399]
[1646849073137,3.91278,2741.1,2740.9,1.5177186]
[1646849073989,3.91278,2741.1,2741.0,0.08785814]
[1646849073990,3.0,2741.1,2741.0,0.08785814]
[1646849074298,0.5401762,2741.3,2741.0,1.5468866]
[1646849074592,0.5401762,2741.3,2741.1,1.5177186]
[1646849077496,0.05414621,2741.2,2741.1,1.5177186]
[1646849077746,0.05414621,2741.2,2740.7,1.5177186]
[1646849077938,0.05414621,2741.2,2740.8,1.5177186]
[1646849078138,0.05544886,2741.1,2740.8,1.5177186]
[1646849078538,0.05544886,2741.1,2740.9,1.5177186]
[1646849078738,0.05544886,2741.1,2740.6,1.5422196]
[1646849078937,0.05544886,2741.1,2740.7,1.5175768]
[1646849078938,0.91291,2741.0,2740.7,1.5175768]
[1646849079742,0.5401762,2741.3,2740.9,0.029168]
[1646849079942,3.0,2741.4,2741.2,0.029168]
[1646849080140,3.0,2741.4,2741.3,1.5467448]
[1646849080639,3.0,2741.4,2741.3,5.11798877]
[1646849081240,2.95,2741.4,2741.3,1.61798877]
[1646849081884,2.95,2741.4,2741.3,1.5467448]
[1646849082088,2.95,2741.4,2741.3,5.0467448]
[1646849082285,2.95,2741.4,2741.3,5.12611909]
[1646849082688,0.99992273,2742.7,2741.5,16.61]
[1646849082891,7.86660831,2743.4,2742.6,0.029168]
[1646849083086,7.86660831,2743.4,2742.7,0.024959]
[1646849083087,4.52906739,2743.2,2742.7,0.024959]
[1646849083290,4.52906739,2743.2,2743.1,0.024959]
[1646849083486,1.02906739,2743.2,2742.7,0.024501]
[1646849083689,1.02906739,2743.2,2742.7,0.024853]
[1646849083888,1.02906739,2743.2,2742.8,0.91197]
[1646849083889,1.94117739,2743.2,2742.8,0.91197]
[1646849084091,1.94117739,2743.2,2742.5,0.09771166]
[1646849084292,1.94117739,2743.2,2742.3,0.3]
[1646849084293,3.22556264,2743.1,2742.3,0.3]
[1646849084489,3.22556264,2743.1,2742.0,0.07910836]
[1646849084490,0.05263702,2743.0,2742.0,0.07910836]
[1646849084692,0.526,2742.9,2742.0,0.07910836]
[1646849084889,0.526,2742.9,2742.0,0.07754339]
[1646849085091,1.0,2742.3,2742.0,0.07754339]
[1646849085533,3.0,2742.1,2742.0,0.07754339]
[1646849086335,3.0,2742.1,2741.9,1.82459]
[1646849086537,3.0,2742.1,2741.4,0.07886352]
[1646849086737,3.0,2742.1,2741.5,1.5171862]
[1646849086935,0.526,2742.0,2741.6,1.5171862]
[1646849087134,0.526,2742.0,2741.5,0.08633894]
[1646849087135,1.16609733,2741.7,2741.5,0.08633894]
[1646849087340,1.16609733,2741.7,2741.5,0.024504]
[1646849087533,1.16609733,2741.7,2741.4,0.024501]
[1646849087735,0.526,2742.0,2741.5,0.024781]
[1646849087939,0.526,2742.0,2741.5,0.024639]
[1646849088140,0.526,2742.0,2741.5,0.08245708]
[1646849088540,0.91259,2741.9,2741.5,0.08245708]
[1646849088738,0.96378923,2741.7,2741.5,0.08245708]
[1646849088984,0.95794889,2741.8,2741.7,0.65455413]
[1646849090388,1.95787162,2741.8,2741.7,0.65455413]
[1646849090787,0.95794889,2741.8,2741.7,0.65455413]
[1646849091594,2.53364711,2741.8,2741.7,0.65455413]
[1646849091789,3.53364711,2741.8,2741.7,0.65455413]
[1646849093050,0.91283,2741.5,2740.8,0.05056697]
[1646849093248,0.91283,2741.5,2740.9,1.51737502]
[1646849093448,1.91275273,2741.5,2740.9,1.51737502]
[1646849093651,0.99992273,2741.4,2740.9,1.51737502]
[1646849094248,1.15977414,2741.1,2741.0,0.024774]
[1646849094455,2.07259414,2741.1,2741.0,1.54214902]
[1646849094650,2.07259414,2741.1,2741.0,1.51737502]
[1646849095157,2.07259414,2741.1,2740.8,0.3]
[1646849095355,3.07251687,2741.1,2740.9,1.51751425]
[1646849095553,3.07251687,2741.1,2740.6,0.00390432]
[1646849095755,0.99992273,2740.9,2740.6,0.00390432]
[1646849095953,0.91296,2740.8,2740.6,0.00390432]
[1646849096253,0.91296,2740.8,2740.6,1.51763057]
[1646849096485,0.95664456,2740.8,2740.6,0.00390421]
[1646849096688,1.04864917,2740.7,2740.6,0.00390421]
[1646849096888,4.0,2740.6,2740.5,0.08361209]
[1646849097084,4.526,2740.6,2740.5,0.08361209]
[1646849097285,1.02329871,2740.4,2740.1,3.0]
[1646849097487,1.54929871,2740.4,2740.2,1.5177726]
[1646849097793,0.04177316,2740.3,2740.2,1.5177726]
[1646849097990,0.56777316,2740.3,2740.2,1.5177726]
[1646849101740,0.17247827,2740.4,2740.2,1.5177726]
[1646849101741,0.05139629,2740.5,2740.2,5.0425326]
[1646849101940,0.05139629,2740.5,2740.3,1.5426646]
[1646849102140,0.05139629,2740.5,2740.4,1.5676906]
[1646849102342,0.05139629,2740.5,2740.4,1.5177726]
[1646849102563,0.34662729,2740.7,2740.4,1.5177726]
[1646849102740,0.93401975,2740.7,2740.4,1.5423516]
[1646849102944,0.93401975,2740.7,2740.4,0.024579]
[1646849103141,1.23401975,2740.7,2740.4,0.024579]
[1646849103742,0.34662729,2740.7,2740.4,0.00396274]
[1646849103986,0.34662729,2740.7,2740.4,0.05325174]
[1646849104183,0.04662729,2740.7,2740.5,1.51774658]
[1646849104388,0.04662729,2740.7,2740.5,0.024589]
[1646849105185,0.04662729,2740.7,2740.4,0.05325174]
[1646849105885,0.95962729,2740.7,2740.4,0.049289]
[1646849106086,0.95962729,2740.7,2740.4,0.05319768]
[1646849106285,1.48562729,2740.7,2740.4,0.05319768]
[1646849106885,1.48562729,2740.7,2740.4,0.049289]
[1646849107286,1.78562729,2740.7,2740.4,0.05319768]
[1646849107486,1.78562729,2740.7,2740.5,1.51776208]
[1646849107747,0.99992273,2740.9,2740.6,3.524959]
[1646849107940,1.86985745,2741.0,2740.7,0.024959]
[1646849108141,2.42107331,2741.0,2740.7,0.049649]
[1646849108739,2.72107331,2741.0,2740.7,0.049649]
[1646849109141,3.72107331,2741.0,2740.7,0.024959]
[1646849109344,0.029168,2740.8,2740.2,0.01563653]
[1646849109542,0.526,2740.7,2739.9,0.07088995]
[1646849109744,0.526,2740.7,2740.5,0.00391242]
[1646849109745,1.8694574,2740.6,2740.5,0.00391242]
[1646849109942,3.39538013,2740.6,2740.5,0.00391242]
[1646849110341,4.39538013,2740.6,2740.5,0.00391242]
[1646849110540,5.43718759,2740.6,2739.9,0.91479497]
[1646849110746,0.04557922,2740.5,2740.0,1.5178837]
[1646849110942,0.04557922,2740.5,2740.4,0.00391233]
[1646849111243,0.3,2740.7,2740.4,0.00391233]
[1646849111489,0.3,2740.7,2740.5,0.13673765]
[1646849111686,0.526,2740.6,2740.5,0.13673765]
[1646849112086,1.43902,2740.6,2740.5,0.13673765]
[1646849112285,0.04334954,2740.8,2740.5,1.65439279]
[1646849112487,2.82594,2741.0,2740.6,1.51759952]
[1646849112889,1.99992273,2741.1,2740.6,1.51759952]
[1646849113089,1.99992273,2741.1,2740.7,3.5]
[1646849113090,1.0,2741.1,2740.7,3.5]
[1646849113294,3.40648619,2741.2,2740.8,1.60647319]
[1646849113295,2.85981272,2741.2,2740.8,1.60647319]
[1646849113492,0.00391083,2741.4,2740.9,5.01744292]
[1646849113692,0.00391083,2741.4,2741.0,0.07766875]
[1646849114292,1.8254,2741.8,2741.1,3.49141636]
[1646849114492,1.8254,2741.8,2741.1,1.97405483]
[1646849114694,0.00391105,2741.4,2741.1,1.97405483]
[1646849115442,0.91263,2741.7,2741.1,1.97405483]
[1646849115743,0.00151284,2741.4,2741.1,0.91265]
[1646849116543,1.21263,2741.7,2741.1,0.91265]
[1646849116743,0.00391372,2741.4,2741.1,0.91265]
[1646849117545,0.91664372,2741.4,2741.1,0.91265]
[1646849117750,0.91273,2741.4,2741.1,0.91265]
[1646849117949,0.91664372,2741.4,2741.1,0.91265]
[1646849119084,0.91273,2741.4,2741.1,0.91265]
[1646849119284,0.91664372,2741.4,2741.1,0.91265]
[1646849120288,0.91273,2741.4,2741.1,0.91265]
[1646849120488,0.91668158,2741.4,2741.1,0.91265]
[1646849121392,0.91273,2741.4,2741.1,0.91265]
[1646849121590,0.00395158,2741.4,2741.2,2.65470534]
[1646849121792,0.00395158,2741.4,2741.2,1.13742551]
[1646849122291,0.00395158,2741.4,2741.3,5.017208]
[1646849122736,0.73266563,2742.0,2741.4,0.91248]
[1646849123145,0.73266563,2742.0,2741.5,1.5171303]
[1646849123343,1.64520563,2742.0,2741.4,1.21248]
[1646849123641,1.64520563,2742.0,2741.5,1.51710568]
[1646849124041,0.00151287,2741.8,2741.5,1.51710568]
[1646849124541,0.00151287,2741.8,2741.5,5.01710568]
[1646849124742,0.00151287,2741.8,2741.4,1.21248]
[1646849124945,1.64520563,2742.0,2741.5,1.51709107]
[1646849125344,0.00151287,2741.8,2741.5,1.51709107]
[1646849126246,0.00151287,2741.8,2741.3,1.82495]
[1646849126247,0.9126,2741.8,2741.3,1.82495]
[1646849126497,0.99992273,2741.6,2741.0,0.98631202]
[1646849126695,0.99992273,2741.6,2741.1,1.51735013]
[1646849127092,1.52592273,2741.6,2741.1,1.51735013]
[1646849127292,0.91274,2741.5,2741.1,1.51735013]
[1646849127798,1.91677956,2741.5,2741.1,1.51735013]
[1646849127997,0.05043186,2741.4,2741.1,1.51735013]
[1646849128196,0.05043186,2741.4,2741.0,1.21274]
[1646849128397,0.05043186,2741.4,2741.1,1.5174422]
[1646849128799,0.05454875,2741.4,2741.1,1.5174422]
[1646849129002,0.05454875,2741.4,2741.2,1.82516]
[1646849129003,0.00411689,2741.4,2741.2,1.82516]
[1646849129196,0.00411689,2741.4,2741.3,1.51739686]
[1646849129798,5.48512226,2741.9,2741.3,1.51739686]
[1646849130252,0.00411683,2741.5,2741.3,1.51739686]
[1646849130942,0.9127,2741.5,2741.3,1.51739686]
[1646849131741,0.9127,2741.5,2741.2,1.82516]
[1646849131940,0.9127,2741.5,2741.3,1.51735252]
[1646849132142,4.52592273,2741.9,2741.3,2.42991252]
[1646849132442,4.526,2741.9,2741.4,1.51735252]
[1646849133247,0.91257,2741.8,2741.4,1.51735252]
[1646849134889,0.0040282,2741.7,2741.4,1.51735252]
[1646849135890,0.91257,2741.8,2741.4,1.51735252]
[1646849136090,0.0039495,2741.7,2741.4,1.51735252]
[1646849136991,0.91257,2741.8,2741.4,1.51735252]
[1646849137291,0.0039495,2741.7,2741.4,1.51735252]
[1646849137494,1.82553,2741.6,2741.4,1.51735252]
[1646849137734,1.82553,2741.6,2741.3,0.3]
[1646849138142,1.82553,2741.6,2741.2,1.82516]
[1646849138340,1.82553,2741.6,2741.3,1.51735973]
[1646849138541,1.82553,2741.6,2741.2,1.82516]
[1646849138542,1.82947958,2741.6,2741.2,1.82516]
[1646849138941,2.74232958,2741.6,2741.1,0.3]
[1646849139140,2.74232958,2741.6,2740.9,1.9107177]
[1646849139141,0.526,2741.5,2740.9,1.9107177]
[1646849139348,1.82574,2741.4,2740.9,1.9107177]
[1646849139543,0.526,2741.3,2740.9,1.9107177]
[1646849140141,1.43886,2741.3,2740.9,1.9107177]
[1646849140542,1.43886,2741.3,2740.9,1.82551]
[1646849141588,1.82575,2741.2,2740.9,1.82551]
[1646849142189,1.43886,2741.3,2740.9,1.82551]
[1646849142390,0.526,2741.3,2740.9,1.82551]
[1646849142591,0.00391353,2741.4,2740.9,1.9037311]
[1646849142793,0.00391353,2741.4,2741.0,0.07346156]
[1646849142991,0.024501,2741.6,2741.0,0.07346156]
[1646849143394,0.00392032,2741.4,2741.0,0.07346156]
[1646849143594,0.024501,2741.6,2741.4,0.00784063]
[1646849143793,0.91263,2741.7,2741.4,0.00784063]
[1646849144994,0.91263,2741.7,2741.4,0.08837318]
[1646849145839,0.91263,2741.7,2741.4,0.00784063]
[1646849146841,0.91679718,2741.7,2741.4,0.00784063]
[1646849147847,3.0,2741.9,2741.5,1.17779626]
[1646849148048,0.00416718,2741.7,2741.6,3.5]
[1646849148448,0.00416718,2741.7,2741.5,1.5555123]
[1646849148648,0.00416718,2741.7,2741.5,1.2555123]
[1646849149091,3.0,2741.9,2741.6,3.5]
[1646849149289,0.54310203,2742.0,2741.6,3.5]
[1646849149492,0.00416713,2741.7,2741.6,3.5]
[1646849149691,0.00416713,2741.7,2741.5,1.5555123]
[1646849149895,0.00416713,2741.7,2741.5,1.2555123]
[1646849150291,0.54310203,2742.0,2741.6,3.5]
[1646849150490,0.00416713,2741.7,2741.6,3.5]
[1646849151090,0.00416713,2741.7,2741.5,1.5555123]
[1646849151292,0.00416713,2741.7,2741.5,1.2555123]
[1646849151491,0.56760303,2742.0,2741.5,1.2555123]
[1646849151692,0.00404207,2741.8,2741.5,1.2555123]
[1646849151891,0.00404207,2741.8,2741.5,0.07771604]
[1646849152763,0.56760303,2742.0,2741.5,0.07771604]
[1646849152952,0.00404207,2741.8,2741.6,0.3638]
[1646849153153,0.4280141,2742.0,2741.8,3.0]
[1646849153352,0.4280141,2742.0,2741.9,0.08061574]
[1646849153852,0.4087341,2742.0,2741.9,0.07930574]
[1646849155060,0.4087341,2742.0,2741.7,0.07545279]
[1646849155256,0.4087341,2742.0,2741.4,3.50784063]
[1646849155257,0.4087341,2742.0,2741.5,0.08324702]
[1646849156491,0.00390982,2741.9,2741.5,0.08324702]
[1646849157491,0.4332351,2742.0,2741.4,0.00784063]
[1646849157895,0.00390979,2741.9,2741.4,0.00784063]
[1646849158094,1.82913979,2741.9,2741.4,0.00784063]
[1646849158497,1.82913979,2741.9,2741.5,1.51742441]
[1646849158696,1.82523,2741.9,2741.5,1.51742441]
[1646849158894,1.82914867,2741.9,2741.5,1.51742441]
[1646849159995,0.00391869,2741.9,2741.5,1.51742441]
[1646849160437,0.00391869,2741.9,2741.6,3.5]
[1646849160640,0.00391869,2741.9,2741.7,1.51742441]
[1646849160837,0.00391869,2741.9,2741.8,1.51742441]
[1646849161038,0.4087341,2742.0,2741.6,1.18032469]
[1646849161238,0.00391875,2741.9,2741.7,1.51742441]
[1646849162240,0.4087341,2742.0,2741.8,1.51742441]
[1646849162439,0.4087341,2742.0,2741.4,0.08120218]
[1646849162440,0.4087341,2742.0,2741.9,1.51742441]
[1646849162845,0.4087341,2742.0,2741.4,0.08120218]
[1646849162846,0.4087341,2742.0,2741.5,1.51742441]
[1646849163643,0.00391813,2741.9,2741.5,1.51742441]
[1646849164389,0.91643813,2741.9,2741.5,1.51742441]
[1646849164592,0.91252,2741.9,2741.5,1.51742441]
[1646849164891,0.9164381,2741.9,2741.5,1.51742441]
[1646849165991,0.91252,2741.9,2741.5,1.51742441]
[1646849166191,0.91643813,2741.9,2741.5,1.51742441]
[1646849166593,0.00391813,2741.9,2741.5,1.51742441]
[1646849166993,0.4332351,2742.0,2741.5,1.51742441]
[1646849167495,0.00391813,2741.9,2741.5,1.51742441]
[1646849168342,0.4332351,2742.0,2741.5,1.51742441]
[1646849168543,0.00391813,2741.9,2741.5,1.51742441]
[1646849169443,0.4332351,2742.0,2741.5,1.51742441]
[1646849169644,0.00391814,2741.9,2741.5,1.51742441]
[1646849169843,0.4332351,2742.0,2741.9,0.00783627]
[1646849170042,0.4332351,2742.0,2741.9,1.52526068]
[1646849170043,0.4087341,2742.0,2741.9,1.52526068]
[1646849173284,0.21108753,2742.0,2741.9,1.52526068]
[1646849173983,0.23995453,2742.0,2741.9,1.52526068]
[1646849174183,0.76595453,2742.0,2741.9,1.52526068]
[1646849174381,0.80805046,2742.0,2741.9,0.00783627]
[1646849176231,4.30805046,2742.0,2741.9,0.00783627]
[1646849176434,0.9128,2741.8,2740.8,0.87110369]
[1646849176633,4.026,2741.7,2740.9,1.51759018]
[1646849176831,0.04454944,2741.6,2740.9,1.51759018]
[1646849177031,0.04454944,2741.6,2741.1,0.003951]
[1646849177032,0.029168,2741.4,2741.1,0.003951]
[1646849177233,0.526,2741.3,2741.1,0.003951]
[1646849177431,3.5465423,2741.2,2741.1,0.003951]
[1646849177632,0.5725423,2741.2,2741.1,0.003951]
[1646849177836,1.57246503,2741.2,2741.0,1.51759018]
[1646849178135,1.05180334,2741.1,2740.8,0.87365171]
[1646849178340,0.526,2741.0,2740.9,1.51768503]
[1646849178536,4.06934638,2741.0,2740.9,1.51768503]
[1646849178975,6.06926911,2741.0,2740.9,1.51768503]
[1646849179178,1.092,2740.8,2740.5,0.13673765]
[1646849179376,5.092,2740.4,2739.7,0.90385134]
[1646849179576,0.95695204,2740.6,2739.5,2.22083883]
[1646849179577,1.092,2740.2,2739.5,2.22083883]
[1646849179877,1.092,2740.0,2739.5,0.08048749]
[1646849180981,1.092,2740.0,2739.3,0.07474034]
[1646849181179,1.092,2739.7,2739.3,0.07474034]
[1646849181782,1.092,2739.7,2739.5,0.00246231]
[1646849181783,4.61145059,2739.7,2739.5,0.00246231]
[1646849181985,5.10828259,2739.6,2739.5,0.00246231]
[1646849182186,5.16227891,2739.6,2739.5,0.00246231]
[1646849182384,7.16220164,2739.6,2739.5,0.00246231]
[1646849182584,7.16220164,2739.6,2738.9,0.0015244]
[1646849182831,1.08228259,2739.3,2738.6,0.07227341]
[1646849183030,1.08228259,2739.3,2739.0,0.00985108]
[1646849183031,4.58228259,2739.3,2739.0,0.00985108]
[1646849183235,1.11078759,2739.3,2739.0,0.00985108]
[1646849183830,1.11078759,2739.3,2738.6,0.07227341]
[1646849183831,1.08228259,2739.0,2738.6,0.07227341]
[1646849184233,1.08228259,2739.0,2738.6,0.08819185]
[1646849185032,1.08228259,2739.0,2738.6,0.07227341]
[1646849185235,1.08228259,2739.0,2738.7,0.00396836]
[1646849186237,1.08228259,2739.0,2738.4,0.07473728]
[1646849186677,1.08228259,2739.0,2738.7,0.00396831]
[1646849186880,1.08228259,2739.0,2738.4,0.02870559]
[1646849187077,1.11145059,2739.0,2738.4,0.02870559]
[1646849187377,1.16780927,2739.0,2738.2,1.23385134]
[1646849187578,1.13864127,2739.0,2738.2,0.33]
[1646849187779,0.029168,2738.8,2738.2,0.03]
[1646849189084,0.029168,2738.7,2738.4,0.00391931]
[1646849189988,0.021774,2738.7,2738.2,0.03]
[1646849190234,0.021774,2738.7,2738.4,0.00391927]
[1646849191029,0.021774,2738.7,2738.2,0.03]
[1646849191230,0.021774,2738.7,2738.4,0.00391927]
[1646849191435,4.96152144,2739.1,2738.4,0.00391927]
[1646849192231,4.96152144,2739.1,2738.3,0.99880108]
[1646849192431,1.46152144,2739.1,2738.6,0.00391963]
[1646849192633,0.025852,2739.0,2738.6,0.00391963]
[1646849192834,0.021001,2739.1,2738.6,0.00391963]
[1646849193434,3.5,2739.5,2739.0,0.88569496]
[1646849193633,3.5,2739.5,2739.1,3.57838054]
[1646849193834,4.2888,2740.1,2739.2,0.09045294]
[1646849194277,0.91317,2740.0,2739.2,0.09045294]
[1646849194477,3.5,2739.8,2739.2,0.09045294]
[1646849194876,0.91317,2740.0,2739.2,0.09045294]
[1646849197582,0.91317,2740.0,2739.5,1.13035973]
[1646849197843,0.91317,2740.0,2739.6,0.08419845]
[1646849198542,0.91317,2740.0,2739.5,1.13035973]
[1646849199542,0.91317,2740.0,2739.3,0.0813688]
[1646849199743,0.9305817,2740.0,2739.4,1.55517508]
[1646849199940,0.9305817,2740.0,2739.4,0.03709769]
[1646849201476,0.9305817,2740.0,2739.5,1.51812852]
[1646849202283,1.17e-05,2740.0,2739.6,3.5]
[1646849202483,1.17e-05,2740.0,2739.7,1.59815048]
[1646849202681,1.17e-05,2740.0,2739.8,5.01812852]
[1646849202881,1.17e-05,2740.0,2739.9,5.01812852]
[1646849203082,1.17e-05,2740.0,2739.9,1.51812852]
[1646849203983,0.00384405,2740.3,2740.1,0.95168808]
[1646849204486,0.00392643,2740.3,2740.1,0.95168808]
[1646849204883,0.00392643,2740.3,2739.7,1.825793]
[1646849205085,0.00392643,2740.3,2739.8,1.51791709]
[1646849205336,0.00392643,2740.3,2739.6,0.01735123]
[1646849205535,0.91301,2740.4,2739.7,1.51793525]
[1646849205741,0.00392648,2740.3,2739.7,1.51793525]
[1646849206638,0.91301,2740.4,2739.7,1.51793525]
[1646849207044,0.00392335,2740.3,2739.7,1.51793525]
[1646849207441,1.83017335,2740.3,2739.7,1.51793525]
[1646849207842,1.82625,2740.3,2739.7,1.51793525]
[1646849208143,0.00371013,2740.3,2739.7,1.51793525]
[1646849209183,0.94166289,2740.4,2739.7,1.51793525]
[1646849209389,0.00371013,2740.3,2739.7,1.51793525]
[1646849209886,0.57172658,2740.6,2740.5,0.13486273]
[1646849210087,1.11271286,2740.6,2740.5,0.13486273]
[1646849211089,4.61271286,2740.6,2740.5,0.13486273]
[1646849211494,5.52568286,2740.6,2740.5,0.13486273]
[1646849211688,2.02568286,2740.6,2740.5,0.13486273]
[1646849211886,5.52568286,2740.6,2740.5,0.13486273]
[1646849212291,7.52560559,2740.6,2740.5,0.13486273]
[1646849212931,11.02560559,2740.6,2740.5,0.13486273]
[1646849213134,10.97987901,2740.6,2740.5,0.13486273]
[1646849214134,7.47987901,2740.6,2740.5,0.13486273]
[1646849214336,4.56698628,2740.6,2740.5,0.13486273]
[1646849216581,5.48000628,2740.6,2740.5,0.13486273]
[1646849216984,1.98000628,2740.6,2740.5,0.13486273]
[1646849218986,5.48000628,2740.6,2740.5,0.13486273]
[1646849219189,9.97992901,2740.6,2740.5,0.13486273]
[1646849219390,0.91326,2740.3,2739.6,0.01375525]
[1646849219589,4.026,2740.2,2739.7,1.51793628]
[1646849219789,5.02592273,2740.2,2739.7,1.51793628]
[1646849219988,1.52592273,2740.2,2739.7,1.51793628]
[1646849221028,0.526,2740.2,2739.7,1.51793628]
[1646849222331,0.91326,2740.3,2739.7,1.51793628]
[1646849223337,0.95714969,2740.3,2739.9,1.20001001]
[1646849223537,0.05283379,2740.5,2740.0,1.51793628]
[1646849223736,0.00392321,2740.4,2740.0,1.51793628]
[1646849224176,0.05720021,2740.4,2740.0,1.51793628]
[1646849224780,0.053277,2740.4,2740.0,1.51793628]
[1646849224980,0.05720032,2740.4,2740.0,1.51793628]
[1646849225582,0.00392332,2740.4,2740.1,0.02093]
[1646849225979,1.45395628,2740.6,2740.2,1.51793628]